bitfinex/quotes_ETHUSD_20240604
["timestamp","ask_amount","ask_price","bid_price","bid_amount"]
[1717504895773,3.0,3763.7,3763.2,1.933]
[1717504895979,2.65703,3763.6,3763.3,0.15786919]
[1717504896419,3.0,3763.5,3763.2,2.37269453]
[1717504896584,3.0,3763.5,3763.4,0.15786919]
[1717504896918,3.57447305,3763.5,3763.4,0.15786919]
[1717504897293,3.57447305,3763.5,3763.2,2.37269453]
[1717504897495,3.0,3763.5,3763.2,2.37269453]
[1717504897819,3.0,3763.5,3763.3,0.15778165]
[1717504898022,0.57449456,3763.4,3763.3,0.15778165]
[1717504898322,0.57449456,3763.4,3763.3,0.15766229]
[1717504898518,3.0,3763.5,3763.2,2.37269453]
[1717504898703,3.0,3763.5,3763.3,0.15766229]
[1717504899081,3.0,3763.5,3763.2,2.37269453]
[1717504899500,0.57448228,3763.4,3763.2,2.37269453]
[1717504899729,0.57448228,3763.4,3763.3,0.15766229]
[1717504900117,0.57448228,3763.4,3763.2,2.37269453]
[1717504900295,0.57448228,3763.4,3763.3,0.15766229]
[1717504900698,0.57448228,3763.4,3763.2,2.37269453]
[1717504901026,0.57448228,3763.4,3763.3,0.15766229]
[1717504901200,0.57448228,3763.4,3763.2,2.37269453]
[1717504901400,3.0,3763.5,3763.3,0.15766229]
[1717504901596,3.0,3763.5,3763.2,2.37269453]
[1717504901920,3.0,3763.5,3763.4,0.15766229]
[1717504902115,3.57448158,3763.5,3763.4,0.15766229]
[1717504902514,3.57448158,3763.5,3763.2,2.37269453]
[1717504902713,3.0,3763.5,3763.2,2.37269453]
[1717504902914,0.57449567,3763.4,3763.2,2.37269453]
[1717504903110,0.57449567,3763.4,3763.3,0.15766229]
[1717504903905,0.57449567,3763.4,3763.3,0.805]
[1717504904237,0.57449567,3763.4,3763.3,0.96266229]
[1717504906622,0.57451479,3763.4,3763.3,0.96266229]
[1717504908346,0.57451479,3763.4,3763.3,0.15766229]
[1717504908560,0.57451479,3763.4,3763.3,0.96266229]
[1717504908757,0.57451479,3763.4,3763.3,0.805]
[1717504918882,3.23171014,3763.4,3763.3,0.805]
[1717504920004,3.23169647,3763.4,3763.3,0.805]
[1717504920823,3.23169647,3763.4,3762.6,3.81329627]
[1717504921121,2.65717,3763.4,3763.3,0.96286919]
[1717504921420,3.23167114,3763.4,3763.3,0.96286919]
[1717504926004,0.57450114,3763.4,3763.3,0.96286919]
[1717504926404,0.57450114,3763.7,3763.3,3.2717646]
[1717504926617,0.57450114,3763.7,3763.6,0.805]
[1717504926915,0.57450114,3763.8,3763.6,0.805]
[1717504927129,0.57450114,3764.1,3763.7,3.2027]
[1717504927337,2.65654,3764.3,3764.0,0.805]
[1717504927645,5.31,3764.5,3764.2,0.805]
[1717504928037,0.75,3764.3,3764.2,0.805]
[1717504930457,0.75,3764.3,3763.7,2.3977]
[1717504930758,0.75,3764.3,3764.2,0.805]
[1717504933029,0.75,3764.3,3764.2,0.9622065]
[1717504933858,3.40653,3764.3,3764.2,0.9622065]
[1717504934058,8.76913,3764.3,3764.2,0.1572065]
[1717504934227,10.477043,3764.3,3764.1,0.805]
[1717504934417,3.0,3764.2,3764.1,0.805]
[1717504937581,2.65678,3764.0,3763.3,7.32]
[1717504937886,2.65691,3763.8,3763.4,0.15679673]
[1717504938098,2.65691,3763.8,3763.7,0.805]
[1717504938241,3.40691,3763.8,3763.7,0.805]
[1717504938447,6.40691,3763.8,3763.7,0.805]
[1717504938650,6.40691,3763.8,3763.7,0.96179673]
[1717504938851,8.87421,3763.8,3763.7,0.15679673]
[1717504939054,8.87421,3763.8,3763.7,0.805]
[1717504939593,6.40691,3763.8,3763.7,0.805]
[1717504939902,6.40691,3763.8,3763.7,0.96186834]
[1717504940560,3.75,3763.8,3763.7,0.96186834]
[1717504940763,0.75,3763.8,3763.7,0.96186834]
[1717504941084,0.75,3763.8,3763.7,1.28797517]
[1717504944386,7.6493,3764.5,3763.7,1.28797517]
[1717504944387,2.65647,3764.4,3763.7,1.28797517]
[1717504944544,0.75,3763.9,3763.7,0.48297517]
[1717504944750,3.0,3764.3,3763.8,0.805]
[1717504945094,3.0,3764.3,3763.7,0.48297517]
[1717504945095,3.0,3764.3,3764.2,0.805]
[1717504945396,3.75,3764.3,3764.2,0.805]
[1717504945699,3.75,3764.3,3764.2,0.96177684]
[1717504954711,3.75,3764.3,3764.2,0.15677684]
[1717504954919,3.75,3764.3,3764.2,0.805]
[1717504955087,3.75,3764.3,3764.2,0.96168934]
[1717504958251,3.75,3764.3,3764.2,0.15668934]
[1717504958452,3.75,3764.3,3764.2,0.96168934]
[1717504970053,3.748942,3764.3,3764.2,0.96168934]
[1717504972536,3.748942,3764.3,3764.2,0.15668934]
[1717504972749,3.748942,3764.3,3764.2,0.96168934]
[1717504972750,6.160542,3764.3,3764.2,0.96168934]
[1717504973064,6.160542,3764.3,3764.2,0.9617291]
[1717504975382,3.748942,3764.3,3764.2,0.9617291]
[1717504977167,3.748942,3764.3,3764.2,0.1567291]
[1717504977361,3.748942,3764.3,3764.2,0.9617291]
[1717504978340,3.748942,3764.3,3764.2,0.1567291]
[1717504978540,3.748942,3764.3,3764.2,0.9617291]
[1717504984390,3.748942,3764.3,3764.2,0.1567291]
[1717504984705,3.748942,3764.3,3764.2,0.805]
[1717504985000,3.748942,3764.3,3764.2,0.96170127]
[1717504987877,4.32329902,3764.3,3764.2,0.96170127]
[1717504988358,4.32329902,3764.3,3764.2,0.15670127]
[1717504988596,4.32329902,3764.3,3764.2,0.96170127]
[1717504988764,4.32329902,3764.3,3764.2,0.805]
[1717504988969,4.32329902,3764.3,3764.2,0.96170127]
[1717504992694,4.32329902,3764.3,3764.2,0.15670127]
[1717504992997,4.32329902,3764.3,3764.2,0.805]
[1717504993163,4.32329902,3764.3,3764.2,0.96170127]
[1717504996960,4.32329902,3764.3,3764.2,0.15670127]
[1717504997266,4.32329902,3764.3,3764.2,0.805]
[1717504997467,4.32329902,3764.3,3764.2,0.96170127]
[1717504999108,1.32435702,3764.3,3764.2,0.96170127]
[1717504999307,4.32435702,3764.3,3764.2,0.96170127]
[1717504999508,1.32435702,3764.3,3764.2,0.96170127]
[1717504999884,4.32432006,3764.3,3764.2,0.96170127]
[1717505000922,1.32432006,3764.3,3764.2,0.96170127]
[1717505004491,1.32432006,3764.3,3764.2,0.15670127]
[1717505004723,2.28775207,3764.3,3763.7,0.5571685]
[1717505005020,0.57432006,3764.2,3763.4,2.4873]
[1717505005232,0.57432006,3764.2,3764.1,0.805]
[1717505005522,0.57443873,3764.2,3764.1,0.805]
[1717505006530,0.57443873,3764.2,3763.4,3.0444685]
[1717505006531,0.57443873,3764.2,3763.5,1.38529191]
[1717505006734,0.75,3764.3,3764.1,0.805]
[1717505006934,0.57438862,3764.2,3764.1,0.805]
[1717505008138,0.57438862,3764.2,3764.1,0.96171317]
[1717505010850,0.57438862,3764.2,3764.1,0.96171317]
[1717505015113,0.57438862,3764.2,3764.1,0.15671317]
[1717505015449,0.57438862,3764.2,3763.9,0.805]
[1717505015746,0.5743889,3764.1,3763.9,0.805]
[1717505016053,0.75,3764.3,3764.0,0.12776824]
[1717505016249,0.57439009,3764.2,3764.0,0.12776824]
[1717505016569,0.57439009,3764.1,3764.0,0.12776824]
[1717505016981,0.57439009,3764.1,3763.9,0.805]
[1717505017135,0.75,3764.3,3764.0,0.12776824]
[1717505017335,0.57439243,3764.2,3764.0,0.12776824]
[1717505017549,0.57439243,3764.1,3764.0,0.12776824]
[1717505017749,0.57439243,3764.2,3764.0,0.12776824]
[1717505017945,0.57439243,3764.1,3764.0,0.12776824]
[1717505018282,0.75,3764.3,3764.0,0.93276824]
[1717505018283,0.57439243,3764.2,3764.0,0.93276824]
[1717505020835,0.57439243,3764.1,3764.0,0.93276824]
[1717505021039,0.57439243,3764.2,3764.0,0.93276824]
[1717505021937,0.57439243,3764.1,3764.0,0.93276824]
[1717505022135,0.57439243,3764.2,3764.0,0.93276824]
[1717505022373,0.57439243,3764.1,3764.0,0.93276824]
[1717505022900,0.57439243,3764.2,3764.0,0.93276824]
[1717505023072,0.75,3764.3,3764.0,0.93276824]
[1717505023073,0.57439243,3764.1,3764.0,0.93276824]
[1717505023240,0.57439243,3764.2,3764.0,0.93276824]
[1717505023436,0.57439243,3764.1,3764.0,0.93276824]
[1717505023639,0.57439243,3764.2,3764.0,0.93276824]
[1717505024130,0.57439243,3764.2,3764.0,0.12776824]
[1717505024567,0.57439243,3764.2,3763.8,3.1241]
[1717505024777,1.32439243,3764.3,3764.1,0.12770857]
[1717505025084,0.57439243,3764.2,3763.9,0.506643]
[1717505026041,0.57435625,3764.2,3763.9,0.506643]
[1717505028465,0.57435625,3764.1,3763.9,0.506643]
[1717505028672,0.57435625,3764.2,3763.9,0.506643]
[1717505028850,0.57435625,3764.1,3763.9,0.506643]
[1717505029183,0.57435625,3764.2,3763.9,0.506643]
[1717505029391,0.57439157,3764.1,3763.9,0.506643]
[1717505029564,0.57439157,3764.0,3763.7,3.46189]
[1717505029756,0.57439157,3764.2,3763.7,3.46189]
[1717505030082,0.57439157,3764.1,3763.7,3.46189]
[1717505030401,0.57439157,3764.0,3763.7,2.65689]
[1717505030579,0.57439157,3764.2,3763.8,0.574339]
[1717505030889,0.75,3764.3,3763.8,0.574339]
[1717505030890,0.57439157,3764.1,3763.8,0.574339]
[1717505031187,0.57439157,3764.0,3763.8,0.574339]
[1717505031389,0.57439157,3764.2,3763.8,0.574339]
[1717505031878,0.57439157,3764.1,3763.8,0.574339]
[1717505032086,0.57439157,3764.0,3763.8,0.574339]
[1717505032568,0.57439157,3764.2,3763.8,0.574339]
[1717505032774,0.57439157,3764.1,3763.8,0.574339]
[1717505032968,0.57439157,3764.0,3763.8,0.574339]
[1717505033170,0.57439157,3764.2,3763.8,0.574339]
[1717505033373,0.57439157,3763.9,3763.8,0.574339]
[1717505033545,0.57439157,3764.2,3763.8,0.574339]
[1717505033744,0.75,3764.0,3763.8,0.574339]
[1717505033945,1.32439157,3764.0,3763.8,0.574339]
[1717505034146,0.57439157,3763.9,3763.8,0.574339]
[1717505034595,0.57439157,3764.3,3763.8,0.574339]
[1717505034745,0.75,3764.0,3763.8,0.574339]
[1717505034945,0.75,3764.0,3763.9,0.3231229]
[1717505035271,1.32440266,3764.0,3763.9,0.3231229]
[1717505035482,1.32440266,3764.0,3763.9,1.1281229]
[1717505035881,0.75,3764.0,3763.9,1.1281229]
[1717505036199,0.75,3764.0,3763.9,2.0516303]
[1717505036395,0.75,3764.0,3763.9,2.05156055]
[1717505036958,0.75,3764.0,3763.9,1.1281229]
[1717505037659,0.57434414,3764.2,3763.9,1.1281229]
[1717505037972,0.75,3764.1,3764.0,0.11142297]
[1717505039767,0.75,3764.1,3763.8,3.74896337]
[1717505039959,0.75,3764.1,3764.0,0.11142297]
[1717505040173,1.32438881,3764.1,3763.8,2.3638]
[1717505040465,0.75,3764.1,3763.8,2.946369]
[1717505040798,0.57438724,3764.0,3763.9,0.11142297]
[1717505041305,0.57438724,3764.3,3763.9,0.11142297]
[1717505041603,0.75,3764.1,3763.9,0.91642297]
[1717505041802,1.32438724,3764.1,3763.9,0.91642297]
[1717505042110,0.75,3764.1,3763.9,0.91642297]
[1717505042394,0.57438724,3764.2,3763.9,0.91642297]
[1717505042582,1.32438724,3764.2,3763.9,0.91642297]
[1717505042905,0.57438724,3764.1,3763.9,0.11142297]
[1717505043099,0.57438724,3764.0,3763.7,2.65689]
[1717505043303,0.75,3764.0,3763.8,0.64595557]
[1717505043961,1.32438724,3764.0,3763.8,0.64595557]
[1717505044180,0.75,3764.0,3763.8,0.64595557]
[1717505044784,1.32438724,3764.0,3763.8,0.64595557]
[1717505044984,0.75,3764.0,3763.9,0.33028456]
[1717505045797,1.32438724,3764.0,3763.9,0.33028456]
[1717505045999,0.75,3764.0,3763.9,0.33028456]
[1717505046323,1.32438724,3764.0,3763.9,0.33028456]
[1717505046526,0.75,3764.0,3763.9,0.33028456]
[1717505047226,1.32438724,3764.0,3763.9,0.33028456]
[1717505047423,0.75,3764.0,3763.9,0.33028456]
[1717505047788,1.32438724,3764.0,3763.9,0.33028456]
[1717505048890,0.75,3764.0,3763.9,0.33028456]
[1717505049491,1.32438724,3764.0,3763.9,0.33028456]
[1717505049741,1.32438724,3764.0,3763.9,7.27547485]
[1717505049905,2.65587,3765.3,3764.1,2.4187]
[1717505050113,0.57438724,3765.2,3765.1,0.805]
[1717505050414,2.99655016,3765.5,3765.1,1.12737]
[1717505050415,0.57438724,3765.4,3765.1,1.12737]
[1717505050616,0.57418756,3765.4,3765.3,0.805]
[1717505051231,0.834,3765.7,3765.3,0.805]
[1717505051394,0.75,3765.5,3765.3,0.805]
[1717505052933,0.75,3765.5,3765.4,0.11130363]
[1717505053632,0.834,3765.7,3765.4,0.11130363]
[1717505054134,0.75,3765.6,3765.5,0.11085433]
[1717505054366,0.75,3765.6,3765.2,0.805]
[1717505054544,0.75,3765.6,3765.5,0.11085433]
[1717505054869,0.96581876,3765.6,3764.7,2.65621]
[1717505055053,0.805,3765.4,3764.3,2.65648]
[1717505055366,0.62433951,3765.5,3764.7,0.805]
[1717505055670,0.63583707,3765.4,3764.7,0.805]
[1717505056567,0.75,3765.3,3764.7,0.805]
[1717505056766,3.40587,3765.3,3764.7,0.805]
[1717505056931,0.57418756,3765.2,3764.7,0.805]
[1717505057265,4.33577702,3765.2,3764.9,0.805]
[1717505057568,3.0,3765.2,3764.9,0.805]
[1717505059985,3.0,3765.2,3765.1,0.805]
[1717505060275,0.75,3765.3,3765.1,0.805]
[1717505063061,0.75,3765.3,3764.9,0.805]
[1717505063239,0.75,3765.3,3764.7,0.805]
[1717505063442,0.75,3765.3,3764.6,2.65627]
[1717505063686,4.32420369,3765.3,3764.6,3.46127]
[1717505064141,0.57420369,3765.2,3764.6,3.46127]
[1717505064534,3.75,3765.3,3764.6,3.46127]
[1717505064746,3.75,3765.3,3764.6,4.032457]
[1717505065591,0.57425243,3765.2,3764.6,4.032457]
[1717505066455,0.57425243,3765.2,3764.6,2.65627]
[1717505066687,0.57425243,3765.2,3764.6,3.46127]
[1717505067990,2.65599,3765.1,3764.7,0.08682334]
[1717505068209,3.1961,3765.0,3764.2,2.65656]
[1717505068423,3.1961,3765.0,3764.8,0.08683527]
[1717505068713,1.1595439,3764.9,3764.2,3.46156]
[1717505068894,0.5743349,3764.9,3764.2,3.46156]
[1717505069203,2.65612,3764.9,3764.2,3.46156]
[1717505069438,0.5743349,3764.8,3764.2,3.46156]
[1717505069566,0.5743349,3764.8,3764.2,0.805]
[1717505069913,2.65627,3764.7,3763.8,2.65683]
[1717505070126,3.46141,3764.5,3763.5,2.4203]
[1717505070416,0.75,3764.3,3763.6,0.805]
[1717505071026,0.75,3764.3,3763.5,3.2253]
[1717505079500,0.75,3764.3,3763.5,2.4203]
[1717505079700,0.75,3764.3,3763.5,3.2253]
[1717505079895,0.75,3764.3,3763.5,2.4203]
[1717505080215,1.32440588,3764.3,3763.6,0.588241]
[1717505082932,1.32440588,3764.3,3763.4,3.46211]
[1717505082933,2.6566,3764.2,3763.4,2.65711]
[1717505083229,0.805,3764.1,3763.4,2.65711]
[1717505083393,5.01005,3764.0,3763.5,0.0871971]
[1717505083597,5.81505,3764.0,3763.0,3.46238]
[1717505083839,5.81505,3764.0,3763.1,0.3529351]
[1717505084391,0.57447337,3763.9,3763.1,0.3529351]
[1717505084546,2.65689,3763.8,3763.1,0.3529351]
[1717505089027,2.65689,3763.8,3763.1,0.3529351]
[1717505092169,3.46189,3763.8,3763.1,0.3529351]
[1717505093551,0.57450413,3763.7,3763.1,0.3529351]
[1717505096269,3.46189,3763.8,3763.1,0.3529351]
[1717505096427,0.57450522,3763.7,3763.1,0.3529351]
[1717505098739,0.75,3763.5,3763.1,0.3529351]
[1717505099481,3.1496,3763.5,3763.1,0.3529351]
[1717505100179,3.1496,3763.5,3763.1,0.0871971]
[1717505100476,3.1496,3763.5,3762.7,3.46266]
[1717505100834,3.1496,3763.5,3762.8,0.08781358]
[1717505101953,0.57452478,3763.4,3762.8,0.08781358]
[1717505102345,0.57452332,3763.4,3762.8,0.08781358]
[1717505107152,0.57452332,3763.4,3762.9,3.4625]
[1717505107354,0.57452332,3763.5,3763.3,0.805]
[1717505107558,0.574453,3763.9,3763.3,3.46218]
[1717505107878,0.574453,3763.9,3763.5,0.805]
[1717505108263,1.324453,3763.9,3763.5,0.805]
[1717505108465,1.324453,3763.9,3763.6,0.08800854]
[1717505108855,1.32442429,3763.9,3763.3,3.46218]
[1717505109053,1.32442429,3763.9,3763.3,4.042778]
[1717505109257,1.32442429,3763.9,3763.4,0.08800854]
[1717505110370,1.32445836,3763.9,3763.4,0.08800854]
[1717505110570,1.32445836,3763.9,3763.6,0.805]
[1717505111318,1.32445836,3763.9,3763.7,0.08800854]
[1717505111790,1.32445836,3763.9,3763.8,0.805]
[1717505112091,2.6563,3764.7,3763.8,1.40379285]
[1717505112092,0.57445836,3764.4,3763.8,1.40379285]
[1717505112304,0.75,3764.4,3764.2,0.805]
[1717505112763,0.75,3764.4,3763.9,2.65681]
[1717505113089,0.57445836,3764.6,3763.9,2.65681]
[1717505113090,0.57445836,3764.5,3763.9,2.65681]
[1717505113290,0.57445836,3764.5,3763.5,2.65706]
[1717505113291,5.44723584,3764.4,3763.5,2.65706]
[1717505113662,5.44723584,3764.4,3763.1,0.55785718]
[1717505113663,2.4677,3764.1,3763.1,2.65735]
[1717505113964,2.4677,3764.1,3763.2,0.0876227]
[1717505113965,2.6569,3763.8,3763.2,0.0876227]
[1717505114169,1.9493642,3763.7,3763.2,0.0876227]
[1717505114369,0.75,3763.5,3762.7,9.9776]
[1717505114556,0.75,3763.5,3763.3,0.0876227]
[1717505114557,1.32449555,3763.5,3763.3,0.0876227]
[1717505114789,4.32449555,3763.5,3762.8,0.805]
[1717505114956,3.75,3763.5,3763.4,0.0847027]
[1717505115155,6.15448871,3763.5,3762.7,2.6576]
[1717505115354,3.63293813,3763.4,3762.7,2.6576]
[1717505115558,0.57453813,3763.3,3762.8,0.0847027]
[1717505115876,2.82793813,3763.4,3762.9,0.0847027]
[1717505116496,2.82793813,3763.4,3762.6,0.805]
[1717505116694,0.93802753,3763.3,3762.6,0.805]
[1717505116864,0.36348095,3763.3,3762.6,0.805]
[1717505117063,0.36348095,3763.3,3762.8,0.805]
[1717505119167,2.82794658,3763.4,3763.0,0.805]
[1717505119428,0.57454658,3763.4,3763.0,0.805]
[1717505119762,1.32454658,3763.5,3763.0,0.805]
[1717505120396,1.32454658,3763.5,3763.2,0.805]
[1717505120869,1.32454658,3763.5,3763.4,0.805]
[1717505120870,0.75,3763.5,3763.4,0.805]
[1717505121870,0.75,3763.5,3763.2,0.805]
[1717505122073,0.75,3763.5,3763.3,0.08482207]
[1717505122302,0.75,3763.5,3763.2,0.805]
[1717505122501,1.32449592,3763.5,3763.4,0.08482207]
[1717505122801,1.871409,3763.5,3762.7,4.04310008]
[1717505123000,1.82125705,3763.5,3762.9,0.805]
[1717505123593,1.82125705,3763.5,3763.0,0.08482207]
[1717505124302,0.71292571,3763.4,3763.0,0.08482207]
[1717505129076,0.71292571,3763.4,3763.2,0.805]
[1717505129442,0.71292571,3763.4,3763.3,0.0846987]
[1717505129608,0.71187271,3763.4,3763.3,0.0846987]
[1717505129770,1.82125705,3763.5,3763.2,0.805]
[1717505129977,1.82125705,3763.5,3763.3,0.0846987]
[1717505130506,1.32449592,3763.5,3763.4,0.0846987]
[1717505130872,1.32449592,3763.5,3763.2,0.805]
[1717505131073,1.32449592,3763.5,3763.3,0.0846987]
[1717505131375,1.32449592,3763.5,3763.2,0.805]
[1717505131604,1.32449592,3763.5,3763.4,0.12673162]
[1717505131789,1.32449592,3763.5,3763.3,0.12673179]
[1717505131987,1.32449592,3763.5,3763.4,0.12673162]
[1717505132400,1.32449592,3763.5,3763.2,0.805]
[1717505132588,1.32449592,3763.5,3763.4,0.12673162]
[1717505132790,1.32449592,3763.5,3763.3,0.12673179]
[1717505133077,1.32449592,3763.5,3763.4,0.12673162]
[1717505133295,1.32449592,3763.5,3763.2,0.805]
[1717505133493,1.32449592,3763.5,3763.4,0.12673162]
[1717505133687,1.32449592,3763.5,3763.3,0.12673179]
[1717505133991,1.32449592,3763.5,3763.2,0.805]
[1717505134197,1.32449592,3763.5,3763.4,0.12673162]
[1717505134393,2.25343551,3763.5,3763.3,0.12705795]
[1717505134694,4.57113551,3763.5,3763.4,0.12705778]
[1717505135025,6.64224973,3763.5,3763.4,0.12705778]
[1717505135221,6.64224973,3763.5,3762.9,3.46245]
[1717505135393,6.0677,3763.5,3763.4,0.12710951]
[1717505135723,7.51472167,3763.5,3763.4,0.12710951]
[1717505135924,7.51472167,3763.5,3763.0,0.805]
[1717505136085,6.940178,3763.5,3763.4,0.12710951]
[1717505136285,7.51470921,3763.5,3763.0,0.805]
[1717505136617,0.57453121,3763.4,3763.1,0.12711001]
[1717505136943,0.57453121,3763.4,3763.0,0.805]
[1717505137122,0.57453121,3763.4,3763.2,0.12710985]
[1717505137422,0.57453121,3763.4,3763.1,0.12711001]
[1717505137587,0.57453121,3763.4,3763.3,0.12710968]
[1717505137787,0.57453121,3763.4,3763.2,0.12710985]
[1717505138008,0.57453121,3763.4,3763.3,0.12710968]
[1717505138421,0.57453121,3763.4,3763.0,0.805]
[1717505138621,0.57453121,3763.4,3763.3,0.12710968]
[1717505138827,0.57453121,3763.4,3763.0,0.805]
[1717505139332,0.57453121,3763.4,3763.1,0.12711001]
[1717505139727,0.57453121,3763.4,3763.0,0.805]
[1717505139927,0.57453121,3763.4,3763.2,0.12724913]
[1717505140234,0.57453121,3763.4,3763.1,0.1272493]
[1717505140550,0.57453121,3763.4,3763.2,0.12724913]
[1717505140905,0.57453121,3763.4,3763.0,0.805]
[1717505141134,0.57453121,3763.4,3763.3,0.12724896]
[1717505141342,0.57453121,3763.4,3763.0,0.805]
[1717505141636,0.57453121,3763.4,3763.2,0.805]
[1717505142027,6.0677,3763.5,3763.3,0.12724896]
[1717505142222,0.5744875,3763.4,3763.3,0.12724896]
[1717505142832,0.5744875,3763.4,3763.2,0.805]
[1717505143013,0.5744875,3763.4,3763.3,0.12724896]
[1717505143427,0.5744875,3763.4,3763.2,0.805]
[1717505143736,0.5744875,3763.4,3763.3,0.12724896]
[1717505144125,0.5744875,3763.4,3763.2,0.805]
[1717505144327,6.0677,3763.5,3763.3,0.12724896]
[1717505144523,0.574509,3763.4,3763.3,0.12724896]
[1717505144715,0.574509,3763.4,3763.2,0.805]
[1717505144900,6.0677,3763.5,3763.3,0.12724896]
[1717505145102,6.0677,3763.5,3762.5,0.55785718]
[1717505145103,2.65766,3762.7,3762.5,0.55785718]
[1717505145446,5.05945824,3763.4,3762.1,1.94348809]
[1717505145447,2.6578,3762.5,3762.1,1.94348809]
[1717505145740,7.16246577,3762.6,3761.1,3.46373]
[1717505145741,2.65808,3762.1,3761.1,3.46373]
[1717505145908,2.65824,3761.9,3760.7,2.65905]
[1717505146103,0.75,3761.7,3761.1,0.805]
[1717505147459,0.75,3761.7,3761.0,2.65886]
[1717505147601,0.75,3761.7,3761.6,0.805]
[1717505147802,0.57474936,3762.2,3761.6,0.805]
[1717505148003,0.75,3761.8,3761.0,4.59386]
[1717505148228,3.57474936,3762.2,3761.0,4.59386]
[1717505148412,0.75,3761.9,3761.1,0.986906]
[1717505152112,2.65819,3762.0,3761.1,0.986906]
[1717505152312,3.40819,3762.0,3761.1,0.986906]
[1717505152708,3.40819,3762.0,3761.2,0.09360607]
[1717505153745,2.65819,3762.0,3761.2,0.09360607]
[1717505153926,2.65819,3762.0,3761.3,0.84703721]
[1717505154327,3.40819,3762.0,3761.4,0.09360573]
[1717505157258,0.75,3762.0,3761.5,2.252]
[1717505157411,2.6579,3762.4,3761.6,0.09360539]
[1717505157917,0.75,3762.3,3761.6,0.09360539]
[1717505158171,0.75,3762.3,3761.7,0.42806054]
[1717505158524,0.75,3762.3,3761.8,0.09466871]
[1717505158860,2.6579,3762.4,3761.8,0.09466871]
[1717505159060,3.4079,3762.4,3761.7,0.42806054]
[1717505159271,0.75,3762.4,3761.8,2.65826]
[1717505159419,2.65755,3762.9,3761.9,0.58823205]
[1717505159618,0.75,3762.7,3762.0,0.09458897]
[1717505161566,2.65729,3763.3,3762.2,2.272]
[1717505161757,0.75,3762.8,3762.3,0.5024619]
[1717505161962,0.75,3762.8,3762.3,0.59705036]
[1717505162124,5.65729,3763.3,3762.3,0.59705036]
[1717505162325,0.75,3762.9,3762.3,0.59705036]
[1717505162567,0.75,3762.9,3762.4,0.74620804]
[1717505162974,0.75,3762.9,3762.5,0.09458812]
[1717505164356,0.75,3762.9,3761.8,4.2017]
[1717505164357,2.6576,3762.8,3761.8,4.2017]
[1717505164556,2.6576,3762.8,3762.6,0.09458795]
[1717505164755,2.6576,3762.8,3761.8,11.5217]
[1717505164958,2.6576,3762.8,3761.8,12.25050805]
[1717505165161,2.6576,3762.8,3761.9,2.75279914]
[1717505165361,0.75,3762.9,3762.2,2.65798]
[1717505165701,0.75,3762.9,3762.3,0.09458846]
[1717505165993,0.75,3762.9,3762.4,0.27525685]
[1717505166296,0.75,3762.9,3762.5,0.09458812]
[1717505169091,0.75,3762.9,3762.5,2.75237812]
[1717505169296,7.746,3763.5,3762.5,2.75237812]
[1717505169527,0.75,3763.1,3762.5,2.75237812]
[1717505169655,0.75,3763.1,3762.6,0.5468235]
[1717505169860,7.746,3763.5,3762.7,0.09431784]
[1717505170084,0.75,3763.2,3762.7,0.09431784]
[1717505170284,0.75,3763.2,3762.5,2.65779]
[1717505170492,0.75,3763.2,3762.6,0.09431801]
[1717505170703,0.75,3763.2,3762.7,2.65765]
[1717505170905,0.75,3763.2,3762.8,0.09431768]
[1717505171067,0.75,3763.2,3762.7,2.65765]
[1717505171271,0.75,3763.2,3762.8,0.09403587]
[1717505171470,0.75,3763.2,3762.7,3.38850069]
[1717505171770,0.75,3763.2,3762.8,0.09403587]
[1717505172177,0.75,3763.2,3762.7,3.38850069]
[1717505172486,0.75,3763.2,3762.8,0.09403587]
[1717505172684,0.75,3763.2,3762.7,2.65765]
[1717505172887,0.75,3763.2,3762.8,0.09403587]
[1717505173078,0.75,3763.2,3762.7,2.65765]
[1717505173276,0.75,3763.2,3762.8,0.09403587]
[1717505173479,0.75,3763.2,3762.7,2.65765]
[1717505173686,0.75,3763.2,3762.8,0.09403587]
[1717505173988,0.75,3763.2,3762.7,2.65765]
[1717505174191,0.75,3763.2,3762.9,0.09400066]
[1717505174401,0.75,3763.2,3762.8,0.09400083]
[1717505174613,0.75,3763.2,3763.0,0.09400049]
[1717505174776,0.75,3763.2,3762.9,0.09400066]
[1717505175105,0.75,3763.2,3763.0,0.09400049]
[1717505175303,0.75,3763.2,3762.7,2.65765]
[1717505175464,0.75,3763.2,3762.8,0.55326583]
[1717505175666,5.31,3763.5,3762.8,0.55326583]
[1717505175884,5.31,3763.5,3763.2,0.806]
[1717505176084,0.75,3763.3,3763.2,0.806]
[1717505176485,0.75,3763.3,3763.0,0.806]
[1717505182069,0.75,3763.3,3763.2,0.806]
[1717505183083,0.75,3763.3,3762.9,2.65745]
[1717505183314,0.75,3763.3,3763.1,0.806]
[1717505183520,0.75,3763.3,3762.9,2.65745]
[1717505183831,0.75,3763.3,3762.9,3.46345]
[1717505186201,0.75,3763.3,3763.1,0.806]
[1717505188028,0.75,3763.3,3763.2,0.09390889]
[1717505192631,5.65695,3763.8,3763.2,0.09390889]
[1717505192836,0.75,3763.3,3763.2,0.09390889]
[1717505193840,0.75,3763.3,3762.9,3.46345]
[1717505194058,0.75,3763.3,3763.2,0.09397235]
[1717505194413,0.75,3763.3,3762.9,3.46345]
[1717505194945,0.75,3763.3,3763.0,0.09397269]
[1717505196823,0.75,3763.3,3763.0,0.89997269]
[1717505198917,0.75,3763.3,3762.0,0.55785718]
[1717505198918,2.65784,3762.5,3762.0,0.55785718]
[1717505199157,2.65784,3762.5,3761.8,0.55785718]
[1717505199368,2.65784,3762.5,3761.6,1.64278578]
[1717505199369,0.75,3762.2,3761.6,0.806]
[1717505199653,0.75,3762.2,3761.8,0.806]
[1717505200411,3.40802,3762.2,3761.8,0.806]
[1717505203648,3.40802,3762.2,3762.0,0.806]
[1717505204176,2.65802,3762.2,3762.0,0.806]